[Event "*** SCC Grand Prix: Titled Tuesday Blitz"]
[Site "Chess.com"]
[Date "2020.07.07"]
[Round "2"]
[White "googlegoom"]
[Black "Maghalashvili"]
[Result "1-0"]
[WhiteElo "2531"]
[BlackElo "2755"]
[TimeControl "180+1"]
[EndTime "10:19:39 PDT"]
[Termination "googlegoom won by resignation"]

1. Nf3 {[%clk 0:02:59.5]} 1... c5 {[%clk 0:02:58.9]} 2. b3 {[%clk 0:02:51.5]}
2... Nf6 {[%clk 0:02:58.2]} 3. Bb2 {[%clk 0:02:51.6]} 3... e6 {[%clk 0:02:59.1]}
4. e3 {[%clk 0:02:51.7]} 4... Be7 {[%clk 0:02:59.3]} 5. Be2 {[%clk 0:02:52.3]}
5... O-O {[%clk 0:02:59.8]} 6. O-O {[%clk 0:02:53]} 6... b6 {[%clk 0:03:00.7]}
7. d4 {[%clk 0:02:53.7]} 7... Bb7 {[%clk 0:03:01.2]} 8. Nbd2 {[%clk 0:02:54.2]}
8... d5 {[%clk 0:03:01.1]} 9. c4 {[%clk 0:02:54.8]} 9... cxd4 {[%clk 0:02:59.9]}
10. Nxd4 {[%clk 0:02:54.2]} 10... Nc6 {[%clk 0:03:00.1]} 11. Rc1 {[%clk
0:02:54]} 11... Rc8 {[%clk 0:02:59.4]} 12. h3 {[%clk 0:02:49.4]} 12... Nxd4
{[%clk 0:02:58.3]} 13. Bxd4 {[%clk 0:02:49]} 13... Ba3 {[%clk 0:02:58.6]} 14.
Rc2 {[%clk 0:02:47.5]} 14... Qe7 {[%clk 0:02:58.4]} 15. Qa1 {[%clk 0:02:44.9]}
15... Rfd8 {[%clk 0:02:55.1]} 16. Rd1 {[%clk 0:02:41.5]} 16... Bd6 {[%clk
0:02:50.9]} 17. Rdc1 {[%clk 0:02:38.3]} 17... e5 {[%clk 0:02:48.5]} 18. Bb2
{[%clk 0:02:37.2]} 18... d4 {[%clk 0:02:45.6]} 19. exd4 {[%clk 0:02:30]} 19...
exd4 {[%clk 0:02:46.5]} 20. Bd3 {[%clk 0:02:08.5]} 20... Nh5 {[%clk 0:02:44.7]}
21. Re1 {[%clk 0:01:53.4]} 21... Qg5 {[%clk 0:02:25.2]} 22. Be4 {[%clk
0:01:52.7]} 22... d3 {[%clk 0:02:12.2]} 23. Nf3 {[%clk 0:01:44.1]} 23... Qf4
{[%clk 0:01:45.8]} 24. Bxb7 {[%clk 0:01:43.7]} 24... dxc2 {[%clk 0:01:44.6]} 25.
Bxc8 {[%clk 0:01:44]} 25... Rxc8 {[%clk 0:01:28.7]} 26. Qc1 {[%clk 0:01:43.9]}
26... Qf5 {[%clk 0:01:23.1]} 27. Nd4 {[%clk 0:01:33.7]} 27... Qa5 {[%clk
0:01:20.8]} 28. a3 {[%clk 0:01:24]} 28... Bf4 {[%clk 0:01:12.6]} 29. Qa1 {[%clk
0:00:56.8]} 29... c1=Q {[%clk 0:01:07.6]} 30. Rxc1 {[%clk 0:00:56.9]} 30... Bxc1
{[%clk 0:01:07]} 31. Qxc1 {[%clk 0:00:57.8]} 31... Qc5 {[%clk 0:00:59.2]} 32. g4
{[%clk 0:00:41.7]} 32... Nf6 {[%clk 0:00:53.7]} 33. Nf5 {[%clk 0:00:42.2]} 33...
Ne4 {[%clk 0:00:43.1]} 34. Qf4 {[%clk 0:00:37.5]} 34... Nxf2 {[%clk 0:00:17.9]}
35. Qxf2 {[%clk 0:00:36.9]} 35... Qxf2+ {[%clk 0:00:17.6]} 36. Kxf2 {[%clk
0:00:37.8]} 36... Rd8 {[%clk 0:00:18]} 37. Ke2 {[%clk 0:00:36.6]} 37... g6
{[%clk 0:00:17.8]} 38. Ne3 {[%clk 0:00:36.5]} 38... Kf8 {[%clk 0:00:16.2]} 39.
b4 {[%clk 0:00:36.7]} 39... Ke7 {[%clk 0:00:15.6]} 40. c5 {[%clk 0:00:34.1]}
40... bxc5 {[%clk 0:00:15.2]} 41. bxc5 {[%clk 0:00:35]} 41... Ke6 {[%clk
0:00:15.2]} 42. Bc3 {[%clk 0:00:28.6]} 42... f5 {[%clk 0:00:14.8]} 43. gxf5+
{[%clk 0:00:27.9]} 43... gxf5 {[%clk 0:00:15.7]} 44. Bb4 {[%clk 0:00:17.4]}
44... Ra8 {[%clk 0:00:13.4]} 45. Nc4 {[%clk 0:00:13.2]} 45... Kd5 {[%clk
0:00:12.2]} 46. Na5 {[%clk 0:00:13.6]} 46... Rg8 {[%clk 0:00:10.4]} 47. Kf3
{[%clk 0:00:13.3]} 47... Rg1 {[%clk 0:00:08.7]} 48. c6 {[%clk 0:00:10.9]} 48...
Rf1+ {[%clk 0:00:07.2]} 49. Ke2 {[%clk 0:00:10.4]} 49... Rc1 {[%clk 0:00:07.5]}
50. Kd2 {[%clk 0:00:10.9]} 50... Rg1 {[%clk 0:00:04.7]} 51. c7 {[%clk
0:00:05.7]} 51... Rg8 {[%clk 0:00:05.3]} 52. Nb3 {[%clk 0:00:05.3]} 52... Rc8
{[%clk 0:00:06]} 53. Ba5 {[%clk 0:00:05.9]} 53... Kc6 {[%clk 0:00:06.1]} 54. a4
{[%clk 0:00:05.8]} 54... Kd5 {[%clk 0:00:05.1]} 55. Kd3 {[%clk 0:00:05.9]} 55...
f4 {[%clk 0:00:04.3]} 56. Nd4 {[%clk 0:00:06.5]} 56... Kc5 {[%clk 0:00:03.7]}
57. Nb5 {[%clk 0:00:06.1]} 57... Kc6 {[%clk 0:00:04.6]} 58. Nxa7+ {[%clk
0:00:06.3]} 58... Kb7 {[%clk 0:00:04.9]} 59. Nxc8 {[%clk 0:00:07]} 59... Kxc8
{[%clk 0:00:05.8]} 60. Ke4 {[%clk 0:00:07.9]} 60... h5 {[%clk 0:00:06.7]} 61.
Kxf4 {[%clk 0:00:08.4]} 1-0

[Event "*** SCC Grand Prix: Titled Tuesday Blitz"]
[Site "Chess.com"]
[Date "2020.07.07"]
[Round "2"]
[White "FMOlexandrProhorov"]
[Black "Budisavljevic"]
[Result "1-0"]
[WhiteElo "2139"]
[BlackElo "2390"]
[TimeControl "180+1"]
[EndTime "10:19:44 PDT"]
[Termination "FMOlexandrProhorov won by resignation"]

1. Nf3 {[%clk 0:03:00.9]} 1... Nf6 {[%clk 0:02:58.2]} 2. c4 {[%clk 0:03:00.1]}
2... e6 {[%clk 0:02:58]} 3. Nc3 {[%clk 0:02:59.1]} 3... c5 {[%clk 0:02:52.9]} 4.
d4 {[%clk 0:02:47.9]} 4... cxd4 {[%clk 0:02:53.8]} 5. Nxd4 {[%clk 0:02:47.6]}
5... Qc7 {[%clk 0:02:48.9]} 6. e4 {[%clk 0:02:40]} 6... a6 {[%clk 0:02:46.9]} 7.
a3 {[%clk 0:02:32.1]} 7... b6 {[%clk 0:02:45]} 8. Be3 {[%clk 0:02:29.3]} 8...
Bb7 {[%clk 0:02:39.5]} 9. f3 {[%clk 0:02:29.8]} 9... Be7 {[%clk 0:02:33.5]} 10.
Be2 {[%clk 0:02:29.4]} 10... O-O {[%clk 0:02:33.2]} 11. O-O {[%clk 0:02:24.2]}
11... d6 {[%clk 0:02:33.7]} 12. Qd2 {[%clk 0:02:23.6]} 12... Nbd7 {[%clk
0:02:34.1]} 13. Rac1 {[%clk 0:02:22.8]} 13... Rac8 {[%clk 0:02:34.5]} 14. Rfd1
{[%clk 0:02:20]} 14... Qb8 {[%clk 0:02:34.4]} 15. Bf1 {[%clk 0:02:04.4]} 15...
Bd8 {[%clk 0:02:32.7]} 16. g3 {[%clk 0:01:56.7]} 16... Bc7 {[%clk 0:02:30.2]}
17. Bg2 {[%clk 0:01:53.7]} 17... Rfe8 {[%clk 0:02:25.8]} 18. b4 {[%clk
0:01:43.5]} 18... Qa8 {[%clk 0:02:21.5]} 19. Bg5 {[%clk 0:01:15.3]} 19... d5
{[%clk 0:02:02.9]} 20. cxd5 {[%clk 0:01:14.8]} 20... exd5 {[%clk 0:02:03.3]} 21.
exd5 {[%clk 0:01:11]} 21... Nxd5 {[%clk 0:02:00.9]} 22. Nxd5 {[%clk 0:01:09.1]}
22... Bxd5 {[%clk 0:02:01.8]} 23. Nf5 {[%clk 0:01:06.7]} 23... Be6 {[%clk
0:01:38.5]} 24. Ne7+ {[%clk 0:01:03.8]} 24... Rxe7 {[%clk 0:01:36.7]} 25. Bxe7
{[%clk 0:01:04.7]} 25... Qb8 {[%clk 0:01:20.9]} 26. f4 {[%clk 0:01:00]} 26...
Re8 {[%clk 0:01:12.8]} 27. Bd6 {[%clk 0:00:57.2]} 27... Bxd6 {[%clk 0:01:03.5]}
28. Qxd6 {[%clk 0:00:58.1]} 28... Qxd6 {[%clk 0:00:44.8]} 29. Rxd6 {[%clk
0:00:57.5]} 29... b5 {[%clk 0:00:42.2]} 30. Bc6 {[%clk 0:00:55.5]} 30... Re7
{[%clk 0:00:38]} 31. Bxd7 {[%clk 0:00:53]} 31... Bxd7 {[%clk 0:00:37.8]} 32.
Rcd1 {[%clk 0:00:40.2]} 32... Be8 {[%clk 0:00:35.5]} 33. Rxa6 {[%clk 0:00:39.7]}
33... f6 {[%clk 0:00:31.5]} 34. Kf2 {[%clk 0:00:35.1]} 34... Bh5 {[%clk
0:00:27]} 35. Re1 {[%clk 0:00:34.3]} 35... Rc7 {[%clk 0:00:22.3]} 36. Ra8+
{[%clk 0:00:30.5]} 36... Kf7 {[%clk 0:00:21.6]} 37. Rb8 {[%clk 0:00:29.3]} 37...
Rc2+ {[%clk 0:00:20.5]} 38. Ke3 {[%clk 0:00:29.6]} 38... Rc3+ {[%clk 0:00:16.5]}
39. Kd4 {[%clk 0:00:29.9]} 39... Rc4+ {[%clk 0:00:13.6]} 40. Kd5 {[%clk
0:00:27.7]} 40... Bf3+ {[%clk 0:00:13.5]} 41. Kd6 {[%clk 0:00:26.7]} 41... Rc6+
{[%clk 0:00:11.6]} 42. Kd7 {[%clk 0:00:26.5]} 42... Rc3 {[%clk 0:00:12]} 43. f5
{[%clk 0:00:25.1]} 43... Rd3+ {[%clk 0:00:07.1]} 44. Kc7 {[%clk 0:00:25.3]}
44... g6 {[%clk 0:00:05.9]} 45. Rxb5 {[%clk 0:00:22.2]} 45... Rc3+ {[%clk
0:00:04.2]} 46. Kb8 {[%clk 0:00:21.7]} 46... gxf5 {[%clk 0:00:03.1]} 47. a4
{[%clk 0:00:21.5]} 47... Ra3 {[%clk 0:00:02.7]} 48. a5 {[%clk 0:00:21.6]} 48...
Bg4 {[%clk 0:00:03.5]} 49. Rb7+ {[%clk 0:00:20.8]} 49... Kg6 {[%clk 0:00:02.8]}
50. Ree7 {[%clk 0:00:20.6]} 50... f4 {[%clk 0:00:02.1]} 51. gxf4 {[%clk
0:00:20.3]} 51... Kf5 {[%clk 0:00:03]} 52. Rxh7 {[%clk 0:00:20.2]} 52... Bf3
{[%clk 0:00:03.6]} 53. Ra7 {[%clk 0:00:19.4]} 53... Rb3 {[%clk 0:00:03.9]} 54.
Rab7 {[%clk 0:00:14.7]} 54... Bxb7 {[%clk 0:00:03]} 55. Rxb7 {[%clk 0:00:14.2]}
55... Kxf4 {[%clk 0:00:03.9]} 56. a6 {[%clk 0:00:14.4]} 56... f5 {[%clk
0:00:03.4]} 57. a7 {[%clk 0:00:14.6]} 57... Ra3 {[%clk 0:00:04.3]} 58. a8=Q
{[%clk 0:00:14.3]} 58... Rxa8+ {[%clk 0:00:05.2]} 59. Kxa8 {[%clk 0:00:14.8]}
59... Ke3 {[%clk 0:00:06.1]} 60. Rf7 {[%clk 0:00:14.5]} 60... f4 {[%clk
0:00:07]} 61. b5 {[%clk 0:00:14.8]} 61... f3 {[%clk 0:00:07.2]} 62. Rxf3+ {[%clk
0:00:15.4]} 62... Kxf3 {[%clk 0:00:07.4]} 63. b6 {[%clk 0:00:16.3]} 63... Kg2
{[%clk 0:00:07.5]} 64. b7 {[%clk 0:00:17.2]} 64... Kh1 {[%clk 0:00:08.4]} 65.
b8=Q {[%clk 0:00:17.5]} 65... Kg2 {[%clk 0:00:09.3]} 66. Qf4 {[%clk 0:00:16.3]}
66... Kh1 {[%clk 0:00:10.2]} 67. Kb7 {[%clk 0:00:16]} 67... Kg2 {[%clk
0:00:09.5]} 68. Kc6 {[%clk 0:00:16.2]} 68... Kh1 {[%clk 0:00:10.4]} 69. Kd5
{[%clk 0:00:16.6]} 69... Kg1 {[%clk 0:00:11.1]} 70. Ke4 {[%clk 0:00:16.5]} 70...
Kh1 {[%clk 0:00:12]} 71. Ke3 {[%clk 0:00:16.5]} 71... Kg1 {[%clk 0:00:12.2]} 72.
h4 {[%clk 0:00:16.1]} 1-0

[Event "*** SCC Grand Prix: Titled Tuesday Blitz"]
[Site "Chess.com"]
[Date "2020.07.07"]
[Round "2"]
[White "csati17"]
[Black "SaqoChess_Twitch"]
[Result "1-0"]
[WhiteElo "2661"]
[BlackElo "2415"]
[TimeControl "180+1"]
[EndTime "10:19:45 PDT"]
[Termination "csati17 won by resignation"]

1. c4 {[%clk 0:03:00.9]} 1... e6 {[%clk 0:02:59]} 2. Nf3 {[%clk 0:03:00.8]} 2...
d5 {[%clk 0:02:59.1]} 3. g3 {[%clk 0:03:01.7]} 3... Nf6 {[%clk 0:02:59.1]} 4.
Bg2 {[%clk 0:03:02.1]} 4... Be7 {[%clk 0:02:59.8]} 5. O-O {[%clk 0:03:02]} 5...
O-O {[%clk 0:03:00.4]} 6. b3 {[%clk 0:03:02.6]} 6... c5 {[%clk 0:02:58.8]} 7.
Bb2 {[%clk 0:03:02.8]} 7... Nc6 {[%clk 0:02:59.5]} 8. e3 {[%clk 0:03:03]} 8...
b6 {[%clk 0:02:59.9]} 9. Nc3 {[%clk 0:03:02.2]} 9... Ba6 {[%clk 0:02:59.9]} 10.
Qe2 {[%clk 0:02:55.4]} 10... Rc8 {[%clk 0:03:00]} 11. d3 {[%clk 0:02:52.3]}
11... Qd7 {[%clk 0:02:57.8]} 12. Rfd1 {[%clk 0:02:43.1]} 12... Rfd8 {[%clk
0:02:55.6]} 13. Nb5 {[%clk 0:02:35.1]} 13... Qe8 {[%clk 0:02:49.5]} 14. e4
{[%clk 0:02:28.9]} 14... dxe4 {[%clk 0:02:31.7]} 15. dxe4 {[%clk 0:02:28.8]}
15... Rxd1+ {[%clk 0:02:31.4]} 16. Rxd1 {[%clk 0:02:28.5]} 16... Bxb5 {[%clk
0:02:20.5]} 17. cxb5 {[%clk 0:02:29.4]} 17... Nb8 {[%clk 0:02:15.2]} 18. Ne5
{[%clk 0:02:08.6]} 18... Rd8 {[%clk 0:02:15]} 19. a4 {[%clk 0:02:06.9]} 19...
Rxd1+ {[%clk 0:02:10.3]} 20. Qxd1 {[%clk 0:02:07.8]} 20... Qd8 {[%clk
0:02:09.4]} 21. Qc2 {[%clk 0:02:06.3]} 21... Qc7 {[%clk 0:02:04.9]} 22. Qd3
{[%clk 0:01:52.2]} 22... Nfd7 {[%clk 0:02:02.5]} 23. Nc4 {[%clk 0:01:50.4]}
23... f6 {[%clk 0:01:45.2]} 24. Bh3 {[%clk 0:01:48.3]} 24... e5 {[%clk 0:01:42]}
25. Qd5+ {[%clk 0:01:46.5]} 25... Kh8 {[%clk 0:01:28]} 26. Qf7 {[%clk
0:01:44.8]} 26... Qd8 {[%clk 0:01:11.7]} 27. Ne3 {[%clk 0:01:32.3]} 27... Qf8
{[%clk 0:01:09.1]} 28. Qe6 {[%clk 0:01:32.1]} 28... Bd8 {[%clk 0:01:06.1]} 29.
Nd5 {[%clk 0:01:30.9]} 29... Qg8 {[%clk 0:00:56.6]} 30. Qg4 {[%clk 0:01:29.8]}
30... Qf7 {[%clk 0:00:53.9]} 31. f4 {[%clk 0:01:26.9]} 31... h5 {[%clk
0:00:46.1]} 32. Qf3 {[%clk 0:01:22.3]} 32... exf4 {[%clk 0:00:44.8]} 33. gxf4
{[%clk 0:01:23.2]} 33... Nf8 {[%clk 0:00:44.4]} 34. f5 {[%clk 0:01:07.6]} 34...
Nbd7 {[%clk 0:00:44]} 35. Bf1 {[%clk 0:00:57.8]} 35... Kh7 {[%clk 0:00:38.4]}
36. Be2 {[%clk 0:00:56.7]} 36... g6 {[%clk 0:00:31.1]} 37. Kf1 {[%clk
0:00:53.8]} 37... Ne5 {[%clk 0:00:25]} 38. Qh3 {[%clk 0:00:52]} 38... Kg7 {[%clk
0:00:20.5]} 39. Qg3 {[%clk 0:00:46.5]} 39... g5 {[%clk 0:00:19.9]} 40. Bxe5
{[%clk 0:00:45.7]} 40... fxe5 {[%clk 0:00:20.6]} 41. Qxe5+ {[%clk 0:00:46.6]}
41... Kh7 {[%clk 0:00:19.9]} 42. f6 {[%clk 0:00:43.4]} 42... Nd7 {[%clk
0:00:18.7]} 43. Qf5+ {[%clk 0:00:43.7]} 43... Kh8 {[%clk 0:00:18.9]} 44. Qxg5
{[%clk 0:00:31.4]} 44... Nxf6 {[%clk 0:00:18.9]} 45. Qf5 {[%clk 0:00:27.9]}
45... Kg7 {[%clk 0:00:16.4]} 46. Nf4 {[%clk 0:00:27]} 46... Kh6 {[%clk
0:00:13.4]} 47. Ne6 {[%clk 0:00:25.3]} 47... Be7 {[%clk 0:00:12.5]} 48. e5
{[%clk 0:00:22.5]} 48... h4 {[%clk 0:00:10.6]} 49. exf6 {[%clk 0:00:22.3]} 49...
Qxf6 {[%clk 0:00:11.5]} 50. Qxf6+ {[%clk 0:00:22.4]} 50... Bxf6 {[%clk
0:00:12.4]} 51. Kg2 {[%clk 0:00:21.2]} 51... Kg6 {[%clk 0:00:12.8]} 52. Bd3+
{[%clk 0:00:21.6]} 52... Kf7 {[%clk 0:00:12.8]} 53. Bf5 {[%clk 0:00:22]} 53...
Be5 {[%clk 0:00:13.1]} 54. h3 {[%clk 0:00:21.6]} 54... Kf6 {[%clk 0:00:13.7]}
55. Bg4 {[%clk 0:00:22.2]} 55... Bd6 {[%clk 0:00:13.7]} 56. Kf3 {[%clk
0:00:22.2]} 56... Ke5 {[%clk 0:00:14.3]} 57. Nf4 {[%clk 0:00:21.7]} 57... Kd4
{[%clk 0:00:14.3]} 58. Ng6 {[%clk 0:00:21.6]} 58... Kc3 {[%clk 0:00:14.3]} 59.
Be6 {[%clk 0:00:21.3]} 59... Bg3 {[%clk 0:00:14.3]} 60. Kg4 {[%clk 0:00:21.6]}
60... Kb4 {[%clk 0:00:14.8]} 61. Nxh4 {[%clk 0:00:21.6]} 61... Be5 {[%clk
0:00:14.2]} 62. Nf3 {[%clk 0:00:21.3]} 62... Bc3 {[%clk 0:00:14.7]} 63. h4
{[%clk 0:00:21.6]} 63... Ka5 {[%clk 0:00:14.7]} 64. Kf5 {[%clk 0:00:21.7]} 64...
Kb4 {[%clk 0:00:15]} 65. Ne5 {[%clk 0:00:21.5]} 65... Ka5 {[%clk 0:00:15.6]} 66.
h5 {[%clk 0:00:21.9]} 66... Bd2 {[%clk 0:00:16]} 67. Ng4 {[%clk 0:00:22]} 67...
Bc1 {[%clk 0:00:15.3]} 68. h6 {[%clk 0:00:22.2]} 68... Bxh6 {[%clk 0:00:15.6]}
69. Nxh6 {[%clk 0:00:23.1]} 69... a6 {[%clk 0:00:16.1]} 70. Bc4 {[%clk
0:00:21.9]} 70... axb5 {[%clk 0:00:16]} 71. axb5 {[%clk 0:00:22.8]} 71... Kb4
{[%clk 0:00:16.8]} 72. Ke6 {[%clk 0:00:23.5]} 72... Ka5 {[%clk 0:00:17.7]} 73.
Kd6 {[%clk 0:00:24.4]} 73... Kb4 {[%clk 0:00:18.6]} 74. Kc6 {[%clk 0:00:24.7]}
74... Ka5 {[%clk 0:00:19.5]} 75. Nf5 {[%clk 0:00:25.1]} 75... Kb4 {[%clk
0:00:20.3]} 76. Kxb6 {[%clk 0:00:26]} 76... Ka3 {[%clk 0:00:19.8]} 77. Kxc5
{[%clk 0:00:26.9]} 77... Kb2 {[%clk 0:00:20.2]} 78. b6 {[%clk 0:00:27.8]} 78...
Kc3 {[%clk 0:00:21.1]} 79. b7 {[%clk 0:00:28.7]} 1-0

[Event "*** SCC Grand Prix: Titled Tuesday Blitz"]
[Site "Chess.com"]
[Date "2020.07.07"]
[Round "2"]
[White "Orest_Vovk"]
[Black "XDPS"]
[Result "1/2-1/2"]
[WhiteElo "2505"]
[BlackElo "2715"]
[TimeControl "180+1"]
[EndTime "10:19:51 PDT"]
[Termination "Game drawn - insufficient material"]

1. h4 {[%clk 0:03:00.9]} 1... e5 {[%clk 0:02:24]} 2. h5 {[%clk 0:02:59.5]} 2...
h6 {[%clk 0:02:21.4]} 3. Nc3 {[%clk 0:02:57.6]} 3... Nf6 {[%clk 0:02:20.8]} 4.
d4 {[%clk 0:02:52.5]} 4... e4 {[%clk 0:02:13.2]} 5. d5 {[%clk 0:02:45.5]} 5...
c6 {[%clk 0:02:00.6]} 6. d6 {[%clk 0:02:36.7]} 6... Qa5 {[%clk 0:01:50.8]} 7.
Rh4 {[%clk 0:02:24]} 7... Qb4 {[%clk 0:01:40.9]} 8. a3 {[%clk 0:02:13.1]} 8...
Qxd6 {[%clk 0:01:38.2]} 9. Qxd6 {[%clk 0:02:11.7]} 9... Bxd6 {[%clk 0:01:39.1]}
10. Nxe4 {[%clk 0:02:12]} 10... Be7 {[%clk 0:01:30.8]} 11. Nxf6+ {[%clk
0:02:10.4]} 11... Bxf6 {[%clk 0:01:31.7]} 12. Re4+ {[%clk 0:02:10.6]} 12... Kd8
{[%clk 0:01:26.2]} 13. Nf3 {[%clk 0:01:55.9]} 13... d5 {[%clk 0:01:25.6]} 14.
Rf4 {[%clk 0:01:56]} 14... Re8 {[%clk 0:01:17]} 15. e3 {[%clk 0:01:52.6]} 15...
Nd7 {[%clk 0:01:13.9]} 16. Bd3 {[%clk 0:01:50.6]} 16... Nc5 {[%clk 0:01:13.4]}
17. Bf5 {[%clk 0:01:44.7]} 17... Ne6 {[%clk 0:01:13.2]} 18. Rg4 {[%clk
0:01:33.8]} 18... Bd7 {[%clk 0:01:07]} 19. c4 {[%clk 0:01:11.3]} 19... dxc4
{[%clk 0:01:02.4]} 20. Rxc4 {[%clk 0:01:12.2]} 20... Kc7 {[%clk 0:00:51.9]} 21.
Rb1 {[%clk 0:00:54.9]} 21... Rad8 {[%clk 0:00:44.3]} 22. b4 {[%clk 0:00:51.7]}
22... Kb8 {[%clk 0:00:38.7]} 23. Bb2 {[%clk 0:00:49.4]} 23... Bxb2 {[%clk
0:00:38.1]} 24. Rxb2 {[%clk 0:00:50.3]} 24... Nc7 {[%clk 0:00:36]} 25. Bxd7
{[%clk 0:00:46.4]} 25... Rxd7 {[%clk 0:00:36.9]} 26. Rg4 {[%clk 0:00:43.8]}
26... Ne6 {[%clk 0:00:27.1]} 27. Rd2 {[%clk 0:00:38.3]} 27... Rxd2 {[%clk
0:00:26.9]} 28. Kxd2 {[%clk 0:00:39.2]} 28... Rd8+ {[%clk 0:00:26.8]} 29. Kc2
{[%clk 0:00:37.6]} 29... Rd5 {[%clk 0:00:27.3]} 30. Nd4 {[%clk 0:00:24.1]} 30...
Nxd4+ {[%clk 0:00:20.2]} 31. exd4 {[%clk 0:00:24.3]} 31... Rxh5 {[%clk
0:00:20.3]} 32. Rxg7 {[%clk 0:00:23.9]} 32... Rf5 {[%clk 0:00:20.9]} 33. f3
{[%clk 0:00:21.2]} 33... Kc7 {[%clk 0:00:21]} 34. Kd3 {[%clk 0:00:20.8]} 34...
Rf6 {[%clk 0:00:18.8]} 35. Ke4 {[%clk 0:00:18.4]} 35... Kd6 {[%clk 0:00:19]} 36.
g4 {[%clk 0:00:16.1]} 36... Re6+ {[%clk 0:00:18.1]} 37. Kd3 {[%clk 0:00:15.9]}
37... Rf6 {[%clk 0:00:17.5]} 38. Ke4 {[%clk 0:00:14.3]} 38... Ke7 {[%clk
0:00:17.6]} 39. Rg8 {[%clk 0:00:12.5]} 39... Re6+ {[%clk 0:00:17.9]} 40. Kd3
{[%clk 0:00:12.7]} 40... Kf6 {[%clk 0:00:17.1]} 41. Rh8 {[%clk 0:00:10.9]} 41...
Kg7 {[%clk 0:00:16.8]} 42. Rb8 {[%clk 0:00:10.6]} 42... Re7 {[%clk 0:00:17.3]}
43. Ra8 {[%clk 0:00:10.8]} 43... a6 {[%clk 0:00:16.9]} 44. Rd8 {[%clk
0:00:11.2]} 44... Kf6 {[%clk 0:00:17.2]} 45. d5 {[%clk 0:00:10.9]} 45... cxd5
{[%clk 0:00:16.1]} 46. Rxd5 {[%clk 0:00:11.8]} 46... Kg6 {[%clk 0:00:16.1]} 47.
f4 {[%clk 0:00:10.4]} 47... Rc7 {[%clk 0:00:15.7]} 48. Rd6+ {[%clk 0:00:10.5]}
48... Kg7 {[%clk 0:00:15.8]} 49. g5 {[%clk 0:00:10]} 49... hxg5 {[%clk
0:00:15.7]} 50. fxg5 {[%clk 0:00:10.9]} 50... Re7 {[%clk 0:00:16.1]} 51. Kd4
{[%clk 0:00:10.6]} 51... Re1 {[%clk 0:00:15.9]} 52. Rb6 {[%clk 0:00:10.7]} 52...
Re7 {[%clk 0:00:12.6]} 53. a4 {[%clk 0:00:09.7]} 53... Rc7 {[%clk 0:00:11.3]}
54. b5 {[%clk 0:00:09.7]} 54... axb5 {[%clk 0:00:12.2]} 55. axb5 {[%clk
0:00:10.4]} 55... Kh7 {[%clk 0:00:12.7]} 56. Kd5 {[%clk 0:00:10.5]} 56... Kg7
{[%clk 0:00:13.2]} 57. Rd6 {[%clk 0:00:09.7]} 57... Rc1 {[%clk 0:00:12.7]} 58.
Rb6 {[%clk 0:00:08.7]} 58... Rg1 {[%clk 0:00:12.4]} 59. Rxb7 {[%clk 0:00:08.1]}
59... Rxg5+ {[%clk 0:00:13.3]} 60. Kc6 {[%clk 0:00:08.2]} 60... Rg1 {[%clk
0:00:13.8]} 61. b6 {[%clk 0:00:08.2]} 61... Rc1+ {[%clk 0:00:14.7]} 62. Kd7
{[%clk 0:00:08.6]} 62... f5 {[%clk 0:00:14.4]} 63. Rc7 {[%clk 0:00:07]} 63...
Rb1 {[%clk 0:00:13.3]} 64. Kc8+ {[%clk 0:00:06.3]} 64... Kg6 {[%clk 0:00:13.2]}
65. b7 {[%clk 0:00:07.2]} 65... Kg5 {[%clk 0:00:13.5]} 66. b8=Q {[%clk
0:00:07.4]} 66... Rxb8+ {[%clk 0:00:14.1]} 67. Kxb8 {[%clk 0:00:08.3]} 67... f4
{[%clk 0:00:14.9]} 68. Rg7+ {[%clk 0:00:08]} 68... Kf5 {[%clk 0:00:14.7]} 69.
Kc7 {[%clk 0:00:08.4]} 69... f3 {[%clk 0:00:14.3]} 70. Kd6 {[%clk 0:00:07.6]}
70... Ke4 {[%clk 0:00:14.6]} 71. Rf7 {[%clk 0:00:06.4]} 71... Ke3 {[%clk
0:00:15]} 72. Rxf3+ {[%clk 0:00:05.9]} 72... Kxf3 {[%clk 0:00:15]} 1/2-1/2